Cogmind - Beta 16.1 @@@ ROGUE MODE // 2026.04.22 @ 15:17:05 Player: Thqwib-Linux Result: Destroyed by Decapitator with Experimental Terror Saw Performance ------------- Evolutions (8) 4000 Regions Visited (22) 4400 Robots Destroyed (102) 510 Value Destroyed (2953) 2953 Prototype IDs (103) 2060 Alien Tech Used (5) 1000 Bonus (1300) 1300 TOTAL SCORE: 16223 Bonus ------- Aligned with FarCom 300 MAIN.C Attacked Warlord 500 Hacked Protovariant 500 Cogmind --------- Core Integrity 0/1450 Matter 101/300 Energy 98/100 System Corruption 26% Temperature Cool (0) Movement Core (50) Location -2/Protoforge Parts ------- > --- POWER (2) -------- (None) > --- PROPULSION (8) --- (None) > --- UTILITY (11) ----- (None) > --- WEAPON (2) ------- (None) > --- INVENTORY (5) ---- Advanced Sensor Array Femtoactuators Concept Core Shell Light Regenerative Plating Core Reset Matrix Peak State ------------ > --- POWER ------------ Light Antimatter Reactor Light Quantum Reactor > --- PROPULSION ------- Cooled VTOL Module Field Propulsion Array Q-thruster Electron Diverter Experimental Surge Thruster Experimental Surge Thruster Experimental Surge Thruster > --- UTILITY ---------- 2N-1CE's Frost Array Medium Storage Unit Advanced Visual Processing Unit Advanced Sensor Array Experimental Signal Interpreter Advanced Terrain Scan Processor Experimental Salvage Targeting Computer Improved Melee Analysis Suite Concept Weapon Articulator Improved Hacking Suite Advanced System Shield > --- WEAPON ----------- Sigix Broadsword > --- INVENTORY -------- Light Quantum Reactor Advanced Terrain Scanner Stasis Canceller Advanced Transmission Jammer Light Regenerative Plating Phase Redirector Transdimensional Reconstructor Core Reset Matrix Sigix Broadsword [Rating: 185] Favorites ----------- Power Micro Nuclear Core Engine Ion Engine Power Core Micro Nuclear Core Reactor Light Antimatter Reactor Propulsion Cooled VTOL Module Treads Light Treads Leg Aluminum Leg Wheel Compact Wheel Flight Unit Cooled VTOL Module Utility Medium Storage Unit Device Advanced Sensor Array Storage Medium Storage Unit Processor Advanced Visual Processing Unit Hackware Hacking Suite Protection Hardened Light Armor Plating Artifact Phase Redirector Weapon Improved Light Cannon Energy Gun Small Laser Ballistic Gun Enhanced Autogun Ballistic Cannon Improved Light Cannon Launcher Improved Grenade Launcher Special Weapon Improved Plasma Cutter Slashing Weapon Katana Build | -11 -10 -10 -9 -9 -9 -8 -8 -7 -6 -6 -6 -5 -5 -5 -5 -4 -4 -3 -3 -2 -2 -2 ------- Run | Yrd Mat Min Mat Min Exi Min Mat Fac Fac Was Fac Fac Upp Upp War Pro Fac Res Tes Res Qua Frg Slots Evolved 16 | . . . 2 . . . 2 2 2 . . 2 . . . . 2 2 . 2 . . Power 1 | . . . . . . . . . . . . . . . . . 1 . . . . . Propulsion 6 | . . . 1 . . . 1 1 . . . 1 . . . . 1 . . 1 . . Utility 9 | . . . 1 . . . 1 1 2 . . 1 . . . . . 2 . 1 . . Weapon . | . . . . . . . . . . . . . . . . . . . . . . . Parts Attached 115 | 3 1 4 17 . . 3 16 8 2 1 1 4 . . 3 . 2 4 13 11 12 10 Power 15 | . 1 1 1 . . 1 1 . . . . . . . . . 1 1 2 3 3 . Engine 1 | . 1 . . . . . . . . . . . . . . . . . . . . . Core 6 | . . 1 1 . . 1 1 . . . . . . . . . 1 . 1 . . . Reactor 8 | . . . . . . . . . . . . . . . . . . 1 1 3 3 . Propulsion 36 | 2 . 1 7 . . 2 8 3 . . . 1 . . 1 . 1 . . 5 1 4 Treads 10 | 1 . . 3 . . 1 5 . . . . . . . . . . . . . . . Leg . | . . . . . . . . . . . . . . . . . . . . . . . Wheel 7 | 1 . 1 3 . . 1 1 . . . . . . . . . . . . . . . Hover . | . . . . . . . . . . . . . . . . . . . . . . . Flight 19 | . . . 1 . . . 2 3 . . . 1 . . 1 . 1 . . 5 1 4 Utility 43 | 1 . 1 3 . . . 3 5 2 1 1 3 . . . . . 3 8 2 4 6 Device 20 | 1 . 1 . . . . 1 1 1 1 . 2 . . . . . 2 4 . 2 4 Storage 2 | . . . 1 . . . . 1 . . . . . . . . . . . . . . Processor 11 | . . . 1 . . . 1 1 1 . 1 1 . . . . . . 1 1 1 2 Hackware 5 | . . . . . . . . 2 . . . . . . . . . 1 1 1 . . Protection 4 | . . . 1 . . . 1 . . . . . . . . . . . 2 . . . Artifact 1 | . . . . . . . . . . . . . . . . . . . . . 1 . Weapon 21 | . . 1 6 . . . 4 . . . . . . . 2 . . . 3 1 4 . Energy Gun 7 | . . 1 2 . . . . . . . . . . . 1 . . . 1 1 1 . Energy Cannon . | . . . . . . . . . . . . . . . . . . . . . . . Ballistic Gun 4 | . . . . . . . 2 . . . . . . . . . . . 1 . 1 . Ballistic Cannon 4 | . . . 3 . . . 1 . . . . . . . . . . . . . . . Launcher 1 | . . . 1 . . . . . . . . . . . . . . . . . . . Special Weapon 1 | . . . . . . . . . . . . . . . 1 . . . . . . . Impact Weapon . | . . . . . . . . . . . . . . . . . . . . . . . Slashing Weapon 4 | . . . . . . . 1 . . . . . . . . . . . 1 . 2 . Piercing Weapon . | . . . . . . . . . . . . . . . . . . . . . . . Special Melee Weapon . | . . . . . . . . . . . . . . . . . . . . . . . Unidentified Prototypes 27 | . . . 3 . . . 3 . . . . . . 1 2 . . . 6 3 3 6 Parts Lost 21 | . . . 4 . . 3 1 . . . . . . . . . . . . 3 1 9 Power 3 | . . . 1 . . 1 . . . . . . . . . . . . . 1 . . Propulsion 11 | . . . 1 . . 2 1 . . . . . . . . . . . . 1 1 5 Utility 3 | . . . 1 . . . . . . . . . . . . . . . . . . 2 Weapon 4 | . . . 1 . . . . . . . . . . . . . . . . 1 . 2 Highest Loss Streak 8 | . . . 1 . . 2 1 . . . . . . . . . . . . 2 1 8 To Critical Strikes 1 | . . . . . . 1 . . . . . . . . . . . . . . . . Average Backups 10 | 4 5 7 11 13 13 12 14 10 9 10 10 9 10 10 10 10 8 9 9 9 9 8 Power . | 1 1 1 . . . . 1 1 1 1 1 1 1 1 1 1 . 1 2 . . . Propulsion 2 | 2 3 4 6 7 7 6 5 . . 1 1 . . . . 1 . . . . 1 . Utility 3 | . . . . 1 1 1 2 5 4 5 5 4 5 5 5 5 5 3 3 4 3 4 Weapon 3 | 1 1 2 3 4 4 4 4 3 3 3 3 3 3 3 3 3 3 4 4 3 2 . Tool/Special . | . . . . . . . . . . . . . . . . . . . . . . . Unused Backups 46 | 9 2 . 6 . . 2 7 4 1 . 3 1 . . . . . 1 1 . 4 5 Power 7 | 1 2 . 1 . . . 2 . 1 . . . . . . . . . . . . . Propulsion 15 | 5 . . 1 . . 2 5 . . . 1 . . . . . . 1 . . . . Utility 12 | 1 . . 1 . . . . 1 . . 2 1 . . . . . . 1 . 2 3 Weapon 9 | 2 . . 3 . . . . 2 . . . . . . . . . . . . 2 . Tool/Special 3 | . . . . . . . . 1 . . . . . . . . . . . . . 2 Average Slot Usage (%) 94 | . 100 100 96 100 100 98 82 96 90 93 100 99 100 100 100 100 98 99 99 97 91 77 Core 5 | . . 2 10 11 11 10 9 7 6 6 6 5 5 5 5 5 10 9 4 . . . Reactor 1 | . . . . . . . . . . . . . . . . . . . 4 7 7 7 Treads 4 | . 14 14 10 11 11 11 15 . . . . . . . . . . . . . . . Wheel 6 | . 14 14 21 22 22 21 10 . . . . . . . . . . . . . . . Flight 19 | . . . . . . . . 34 31 33 33 34 35 35 35 35 34 32 32 32 29 24 Device 9 | . 14 14 10 11 11 11 3 6 6 6 13 11 11 11 10 11 10 14 9 10 16 8 Storage 7 | . 14 14 12 11 11 11 9 7 6 6 6 5 5 5 5 5 5 4 4 4 4 3 Processor 12 | . . . 5 11 11 11 17 13 13 13 13 16 17 17 17 17 15 14 15 17 16 18 Hackware 6 | . . . . . . . . 6 13 13 13 11 11 11 11 11 10 13 14 13 8 7 Protection 1 | . . . 3 . . . 5 1 . . . . . . . . . . 1 1 . . Energy Gun 1 | . 14 14 . . . . . . . . . . . . . . . . 1 2 2 . Ballistic Gun 3 | . 14 14 . . . . 4 9 4 6 6 5 5 5 5 6 5 4 2 1 . . Ballistic Cannon 5 | . . . 21 22 22 21 7 . . . . . . . . . . . . . . . Slashing Weapon 2 | . . . . . . . . 5 5 6 6 5 5 4 4 3 5 4 3 3 3 3 Peak Build Rating 185 | 7 7 12 21 19 19 19 42 51 59 60 62 72 72 72 79 79 90 103 118 143 168 185 Average Rating 64 | 6 7 7 17 19 19 18 30 49 51 56 61 71 72 71 75 78 88 98 109 134 153 145 On Entrance 57 | 6 7 7 12 19 19 19 18 42 51 56 60 62 72 72 72 75 78 90 103 114 143 133 Avg Prop Armor Cover (%) 5 | 13 13 12 8 9 9 9 12 14 . . . 2 2 2 1 2 2 2 1 1 . . Naked Turns 17 | . . . . . . . . . . . . . . . . . . . . . . 17 Heaviest Build 63 | 14 14 16 59 54 54 56 63 58 23 24 24 27 23 23 29 24 29 37 41 49 57 54 Greatest Support 62 | 16 16 16 32 28 28 32 32 33 33 25 33 33 25 25 43 41 33 41 51 56 62 60 Greatest Overweight (x) 3 | . . . 2 1 1 3 3 2 . . . . . . . . . 1 . 1 1 3 Average Overweight (x) . | . . . 1 1 1 1 2 . . . . . . . . . . . . . . . Largest Inventory Capacity 20 | 8 8 8 20 20 20 20 20 20 10 10 10 10 10 10 10 10 10 10 10 10 10 10 Average Capacity 12 | 8 8 8 17 20 20 20 20 11 10 10 10 10 10 10 10 10 10 10 10 10 10 9 Most Carried 20 | 6 8 8 16 13 13 14 20 20 10 10 10 10 10 10 10 10 9 10 10 10 10 10 Average Carried 10 | 4 5 7 11 13 13 12 14 10 9 10 10 9 10 10 9 10 8 9 9 9 9 9 Final Capacity 20 | 8 8 8 20 20 20 20 20 10 10 10 10 10 10 10 10 10 10 10 10 10 10 5 Final Carried 20 | 5 6 8 13 13 13 12 20 10 10 10 10 10 10 10 10 10 9 10 10 10 10 5 Class Distribution -------------------- 47% | Hacker-Scout 24% | Scavenger-Mutant 15% | Mutant 4% | Hacker-Ninja Dominant Class ---------------- Mutant | -10/Materials Mutant | -10/Mines Scavenger-Mutant | -9/Materials Scavenger-Mutant | -9/Mines Scavenger-Mutant | -9/Exiles Scavenger-Mutant | -8/Mines Mutant | -8/Materials Sprinter | -7/Factory Hacker-Scout | -6/Factory Hacker-Scout | -6/Waste Hacker-Scout | -6/Factory Hacker-Scout | -5/Factory Hacker-Scout | -5/Upper Caves Hacker-Scout | -5/Upper Caves Hacker-Scout | -5/Warlord Hacker-Scout | -4/Proximity Caves Hacker-Scout | -4/Factory Hacker-Scout | -3/Research Hacker-Scout | -3/Testing Hacker-Scout | -2/Research Hacker-Ninja | -2/Quarantine Hacker-Scout | -2/Protoforge Resources | -11 -10 -10 -9 -9 -9 -8 -8 -7 -6 -6 -6 -5 -5 -5 -5 -4 -4 -3 -3 -2 -2 -2 ----------- Run | Yrd Mat Min Mat Min Exi Min Mat Fac Fac Was Fac Fac Upp Upp War Pro Fac Res Tes Res Qua Frg Matter Collected 3744 | 236 76 64 907 . . 95 412 24 254 49 25 40 . 56 52 58 . 370 221 191 293 321 Remotely . | . . . . . . . . . . . . . . . . . . . . . . . Salvage Created 3096 | 86 220 197 778 . . 85 368 24 77 . 39 . . . . . . 386 252 191 36 357 Parts 197 | 7 13 13 49 . . 12 23 4 6 . 2 . . . . . . 17 18 6 5 22 Haulers Intercepted 8 | . 1 . 4 . . . 3 . . . . . . . . . . . . . . . Recyclers Shooed 5 | 1 . . 2 . . . . . . . . . . . . . . 2 . . . . Parts Field Recycled . | . . . . . . . . . . . . . . . . . . . . . . . Retrieved Matter . | . . . . . . . . . . . . . . . . . . . . . . . Parts Self-Destructed . | . . . . . . . . . . . . . . . . . . . . . . . Prevented . | . . . . . . . . . . . . . . . . . . . . . . . Parts Restored . | . . . . . . . . . . . . . . . . . . . . . . . Kills | -11 -10 -10 -9 -9 -9 -8 -8 -7 -6 -6 -6 -5 -5 -5 -5 -4 -4 -3 -3 -2 -2 -2 ------- Run | Yrd Mat Min Mat Min Exi Min Mat Fac Fac Was Fac Fac Upp Upp War Pro Fac Res Tes Res Qua Frg Combat Hostiles Destroyed 62 | . 7 5 27 . . 8 7 . 1 . . . . . . . . . 2 . . 5 Melee 5 | . . . . . . . . . . . . . . . . . . . . . . 5 Guns 15 | . 7 5 . . . . . . 1 . . . . . . . . . 2 . . . Cannons 33 | . . . 21 . . 5 7 . . . . . . . . . . . . . . . AOE 9 | . . . 6 . . 3 . . . . . . . . . . . . . . . . Classes Destroyed 17 | 2 3 . 3 . . 1 2 1 1 . . . . . . . . 1 1 . . 2 Worker 6 | . . . . . . . . . . . . . . . . . . 2 . . 1 3 Builder 5 | . . . 1 . . 1 1 . . . . . . . . . . 2 . . . . Tunneler 2 | 1 . . . . . . 1 . . . . . . . . . . . . . . . Hauler 8 | . 1 . 4 . . . 3 . . . . . . . . . . . . . . . Recycler 6 | 1 . 1 1 . . . . . . . . . . . . . . 2 . 1 . . Operator 3 | . . . . . . . . 1 . . . . . . . . . . . 1 1 . Drone 1 | . . . . . . . . . . . . . . . . . . . . . . 1 Watcher 9 | . . . . . . . 1 . 1 . 1 . . . . . . 1 1 1 . 3 Swarmer 23 | . 5 3 8 . . 7 . . . . . . . . . . . . . . . . Grunt 21 | . 2 2 11 . . . 4 . . . . . . . . . . . 2 . . . Brawler 1 | . . . . . . . 1 . . . . . . . . . . . . . . . Duelist 1 | . . . 1 . . . . . . . . . . . . . . . . . . . Researcher 1 | . . . . . . . . . . . . . . . . . . . 1 . . . Sentry 9 | . . . 7 . . . 2 . . . . . . . . . . . . . . . Hunter 1 | . . . . . . 1 . . . . . . . . . . . . . . . . Programmer 1 | . . . . . . . . . 1 . . . . . . . . . . . . . Decapitator 4 | . . . . . . . . . . . . . . . . . . . . . . 4 Best Kill Streak 4 | 1 4 3 4 . . 4 4 1 1 . 1 . . . . . . 3 2 1 2 4 Combat Bots Only 4 | . 4 3 4 . . 4 4 . 1 . . . . . . . . . 2 . . 4 Max Kills in Single Turn 3 | 1 1 2 3 . . 2 1 1 1 . 1 . . . . . . 1 1 1 1 1 Gunslinging 1 | . . 1 . . . . . . . . . . . . . . . . . . . . Exploded 3 | . . . 3 . . 2 . . . . . . . . . . . . . . . . Melee 1 | . . . . . . . . . . . . . . . . . . . . . . 1 Uniques/NPCs Destroyed . | . . . . . . . . . . . . . . . . . . . . . . . Combat | -11 -10 -10 -9 -9 -9 -8 -8 -7 -6 -6 -6 -5 -5 -5 -5 -4 -4 -3 -3 -2 -2 -2 -------- Run | Yrd Mat Min Mat Min Exi Min Mat Fac Fac Was Fac Fac Upp Upp War Pro Fac Res Tes Res Qua Frg Hostile Shots Fired 438 | . 19 11 99 . . 14 24 2 8 . 1 . . 1 1 4 . . 34 35 6 179 Missed 153 | . 6 5 29 . . 6 7 1 . . . . . . 1 3 . . 4 9 3 79 Hits 285 | . 13 6 70 . . 8 17 1 8 . 1 . . 1 . 1 . . 30 26 3 100 Melee 45 | . . . 3 . . . . . . . . . . . . . . . . . . 42 Projectile 240 | . 13 6 67 . . 8 17 1 8 . 1 . . 1 . 1 . . 30 26 3 58 AOE 3 | . . . . . . . . . . . . . . . . . . . . . . 3 Critical Strikes 49 | . . . 3 . . 1 1 . 1 . . . . . . . . . 2 4 . 37 Part Disruptions 1 | . . . . . . . . . . . . . . . . . . . . 1 . . Damage Taken 5966 | . 106 66 906 . . 106 243 17 118 . 80 . . 20 . 16 . . 403 621 133 3131 Core 1756 | . 6 8 126 . . . 13 17 29 . 62 . . 20 . 16 . . 75 25 . 1359 Absorbed by Shields 309 | . . . . . . . . . . . . . . . . . . . 180 . . 129 Regen/Repaired (Parts) 706 | . . . . . . . . . 118 . . 21 . . . . . . 113 37 110 307 Core Remaining (%) 92 | 100 . 94 . . . 68 97 97 . . 89 . . . . 96 100 . 94 . . . Volleys Fired 226 | 4 20 8 83 . 1 12 33 . 5 . . . . 2 2 8 . . 18 21 9 . Largest 2 | 2 2 2 2 . 1 2 1 . 2 . . . . 1 1 1 . . 2 2 1 . Hottest 113 | 60 60 60 66 . 33 66 50 . 50 . . . . 36 36 36 . . 50 113 65 . Shots Fired 372 | 8 40 16 163 . 1 22 33 . 10 . . . . 2 2 8 . . 32 25 10 . Gun 141 | 8 40 16 . . . . . . 10 . . . . . . . . . 32 25 10 . Cannon 215 | . . . 161 . 1 20 33 . . . . . . . . . . . . . . . Launcher 16 | . . . 2 . . 2 . . . . . . . 2 2 8 . . . . . . Special . | . . . . . . . . . . . . . . . . . . . . . . . Kinetic 289 | 4 20 8 161 . 1 20 33 . 10 . . . . . . . . . 28 4 . . Thermal 63 | 4 20 8 . . . . . . . . . . . . . . . . . 21 10 . Explosive 16 | . . . 2 . . 2 . . . . . . . 2 2 8 . . . . . . Electromagnetic 4 | . . . . . . . . . . . . . . . . . . . 4 . . . Robot Hit Streak 28 | 3 6 8 13 . . 12 28 . 2 . . . . . . . . . 7 9 . . Robot Miss Streak 4 | 1 3 2 4 . . 2 2 . 1 . . . . . . . . . 2 2 . . Penetration Max . | . . . . . . . . . . . . . . . . . . . . . . . Secondary Targets 2 | . . 1 . . . . . . . . . . . . . . . . 1 . . . Max Gunslinging Chain 1 | . . 1 . . . . . . . . . . . . . . . . 1 . . . Shots Hit Robots 284 | 4 20 12 103 . . 15 28 1 7 . 3 . . . . . . 26 27 23 2 13 Core Hits 121 | 3 12 10 39 . . 10 11 1 3 . 1 . . . . . . 6 12 5 1 7 Critical Kills . | . . . . . . . . . . . . . . . . . . . . . . . Critical Parts Destroyed 1 | . 1 . . . . . . . . . . . . . . . . . . . . . Critical Strikes 12 | . 1 . 7 . . 1 1 . . . . . . . . . . 2 . . . . Destroy 1 | . 1 . . . . . . . . . . . . . . . . . . . . . Blast 9 | . . . 7 . . 1 1 . . . . . . . . . . . . . . . Sever 2 | . . . . . . . . . . . . . . . . . . 2 . . . . Melee Attacks 193 | . . . . . . . 1 7 10 . 9 12 . 1 . . . 35 26 11 26 55 Impact . | . . . . . . . . . . . . . . . . . . . . . . . Slashing 193 | . . . . . . . 1 7 10 . 9 12 . 1 . . . 35 26 11 26 55 Piercing . | . . . . . . . . . . . . . . . . . . . . . . . Sneak Attacks 26 | . . . . . . . . 1 . . 1 . . . . . . 12 1 2 2 7 Combat Hostiles . | . . . . . . . . . . . . . . . . . . . . . . . Follow-up Attacks . | . . . . . . . . . . . . . . . . . . . . . . . Damage Inflicted 10451 | 45 247 140 2675 . . 530 1569 102 152 . 138 . . . . . . 1393 569 863 321 1707 Guns 1462 | 45 247 140 . . . . . . 117 . . . . . . . . . 320 593 . . Cannons 4148 | . . . 2309 . . 270 1569 . . . . . . . . . . . . . . . Explosions 601 | . . . 341 . . 260 . . . . . . . . . . . . . . . . Melee 4215 | . . . . . . . . 102 35 . 138 . . . . . . 1393 249 270 321 1707 Ramming 25 | . . . 25 . . . . . . . . . . . . . . . . . . . Kinetic 4854 | 13 122 63 2309 . . 270 1569 . 117 . . . . . . . . . 308 83 . . Thermal 744 | 32 125 77 . . . . . . . . . . . . . . . . . 510 . . Explosive 601 | . . . 341 . . 260 . . . . . . . . . . . . . . . . Electromagnetic 12 | . . . . . . . . . . . . . . . . . . . 12 . . . Impact . | . . . . . . . . . . . . . . . . . . . . . . . Slashing 4215 | . . . . . . . . 102 35 . 138 . . . . . . 1393 249 270 321 1707 Piercing . | . . . . . . . . . . . . . . . . . . . . . . . Highest Corruption 26 | . . . 2 2 2 2 . . 2 2 2 . . . . . . . . 7 7 26 Average Corruption 4 | . . . 2 2 2 2 . . 1 2 2 . . . . . . . . 5 7 9 Corruption Purged . | . . . . . . . . . . . . . . . . . . . . . . . Corruption Blocked . | . . . . . . . . . . . . . . . . . . . . . . . Effects 69 | . . . 1 . 5 2 . . 4 1 6 . . . . . . . . 7 14 29 Message Errors 14 | . . . 1 . 1 1 . . . . 2 . . . . . . . . 1 6 2 Matter Fused 16 | . . . . . . . . . 1 . 1 . . . . . . . . 1 2 11 Heat Flow Errors 11 | . . . . . 1 1 . . 1 1 1 . . . . . . . . 1 3 2 Energy Discharges 6 | . . . . . . . . . 1 . 1 . . . . . . . . 1 1 2 Parts Fused 1 | . . . . . . . . . . . . . . . . . . . . . . 1 Data Loss (minor) 8 | . . . . . 1 . . . . . 1 . . . . . . . . 3 . 3 Data Loss (major) 1 | . . . . . 1 . . . . . . . . . . . . . . . . . Misfires 1 | . . . . . . . . . . . . . . . . . . . . . 1 . Alerts 4 | . . . . . 1 . . . 1 . . . . . . . . . . . 1 1 Misdirections 7 | . . . . . . . . . . . . . . . . . . . . . . 7 Overload Shots . | . . . . . . . . . . . . . . . . . . . . . . . Overflow Damage 1298 | . . . 32 . . 10 148 . . . 3 . . . . . . 353 . . 99 653 Projectiles 183 | . . . 28 . . 7 148 . . . . . . . . . . . . . . . Explosions 4 | . . . 1 . . 3 . . . . . . . . . . . . . . . . Melee 1111 | . . . 3 . . . . . . . 3 . . . . . . 353 . . 99 653 Knockbacks 31 | . . . 21 . . 4 6 . . . . . . . . . . . . . . . Impact . | . . . . . . . . . . . . . . . . . . . . . . . Kinetic 26 | . . . 16 . . 4 6 . . . . . . . . . . . . . . . Secondary 5 | . . . 5 . . . . . . . . . . . . . . . . . . . Self-Inflicted Damage 12 | . . . 12 . . . . . . . . . . . . . . . . . . . Shots . | . . . . . . . . . . . . . . . . . . . . . . . Rammed 1 | . . . 1 . . . . . . . . . . . . . . . . . . . Targets Rammed 1 | . . . 1 . . . . . . . . . . . . . . . . . . . Kicked . | . . . . . . . . . . . . . . . . . . . . . . . Crushed . | . . . . . . . . . . . . . . . . . . . . . . . Highest Temperature 321 | 20 12 24 276 . 186 224 54 57 249 182 183 65 . 2 124 117 84 . 267 321 111 143 Average Temperature 67 | 20 9 18 47 . 98 119 19 29 62 129 47 39 . 2 124 38 45 . 103 127 53 30 Received Heat Transfer 665 | . 12 24 318 . . . 117 9 . . . . . 9 . . . . 113 9 9 45 Effects 3 | . . . . . . . . . . . . . . . . . . . 1 2 . . Energy Bleed 1 | . . . . . . . . . . . . . . . . . . . 1 . . . Interference 2 | . . . . . . . . . . . . . . . . . . . . 2 . . Siege Activations . | . . . . . . . . . . . . . . . . . . . . . . . Martial Activations . | . . . . . . . . . . . . . . . . . . . . . . . Shielding Activations . | . . . . . . . . . . . . . . . . . . . . . . . Robots Disrupted . | . . . . . . . . . . . . . . . . . . . . . . . Combat Hostiles . | . . . . . . . . . . . . . . . . . . . . . . . Robots Corrupted 1 | . . . 1 . . . . . . . . . . . . . . . . . . . Combat Hostiles . | . . . . . . . . . . . . . . . . . . . . . . . Parts Fried 3 | . . . 3 . . . . . . . . . . . . . . . . . . . Impact Corruptions 1 | . . . 1 . . . . . . . . . . . . . . . . . . . Robots Melted . | . . . . . . . . . . . . . . . . . . . . . . . Combat Hostiles . | . . . . . . . . . . . . . . . . . . . . . . . Parts Melted 3 | 1 . . . . . . . . . . . . . . . . . . . 2 . . Heat Transferred 1117 | 75 275 175 . . . . . . . . . . . . . . . . . 592 . . Parts Sabotaged . | . . . . . . . . . . . . . . . . . . . . . . . Parts Stolen . | . . . . . . . . . . . . . . . . . . . . . . . Parts Stripped . | . . . . . . . . . . . . . . . . . . . . . . . Power Chain Reactions . | . . . . . . . . . . . . . . . . . . . . . . . Alert | -11 -10 -10 -9 -9 -9 -8 -8 -7 -6 -6 -6 -5 -5 -5 -5 -4 -4 -3 -3 -2 -2 -2 ------- Run | Yrd Mat Min Mat Min Exi Min Mat Fac Fac Was Fac Fac Upp Upp War Pro Fac Res Tes Res Qua Frg Maximum Alert Level 1 | . . . 1 . . . . . . . . . . . . . . . . . 1 1 Low Security (%) 84 | 100 100 100 33 100 . 100 100 100 100 100 100 100 . . . . 100 100 100 100 82 81 Level 1 15 | . . . 66 . . . . . . . . . . . . . . . . . 17 18 Level 2 . | . . . . . . . . . . . . . . . . . . . . . . . Level 3 . | . . . . . . . . . . . . . . . . . . . . . . . Level 4 . | . . . . . . . . . . . . . . . . . . . . . . . Level 5 . | . . . . . . . . . . . . . . . . . . . . . . . High Security . | . . . . . . . . . . . . . . . . . . . . . . . Max Security . | . . . . . . . . . . . . . . . . . . . . . . . Peak Influence 386 | 5 195 70 386 144 . 91 95 30 28 . 63 26 . . . . 18 19 96 132 229 367 Initial 144 | . . . 17 144 . . 28 . 7 . . 26 . . . . 18 3 . 7 55 7 Average 82 | . 115 33 222 142 . 41 28 11 2 . 6 7 . . . . 15 2 48 66 114 131 Influence Increases 3990 | 10 252 125 880 . . 220 245 75 70 . 124 87 . 75 . 90 . 58 285 282 408 704 Destroy 0b10 Robot/C 1240 | . 140 100 540 . . 160 140 . 20 . . . . . . . . . 60 . . 80 Destroy 0b10 Robot/NC 200 | 10 5 5 30 . . 5 30 5 5 . 5 . . . . . . 35 5 15 10 35 Destroy Leader 294 | . 32 20 148 . . 30 38 . 12 . 2 . . . . . . 2 2 2 . 6 Allied During Kill 2 | . . . . . . . . . . . . . . . . . . . 2 . . . Successful Hack 431 | . . . 12 . . . . 35 10 . 22 20 . . . . . . 70 52 83 127 Select Force Hacks 30 | . 30 . . . . . . . . . . . . . . . . . . . . . Disable Machine 390 | . . . 60 . . . 15 15 15 . 15 15 . . . . . . 60 15 105 75 Destroy Structure 308 | . . . 30 . . 25 7 5 8 . 5 22 . . . . . 6 26 18 60 96 Partial Spotted 390 | . . . . . . . . 15 . . 30 30 . . . . . 15 45 30 120 105 Lose Combat Pursuer 705 | . 45 . 60 . . . 15 . . . 45 . . 75 . 90 . . 15 150 30 180 Influence Decreases 3662 | 10 252 80 555 236 134 146 319 59 86 . 69 142 . 30 45 60 22 64 273 197 493 390 Entered New Map 594 | . . . 28 226 134 . 46 . 9 . . 29 . . 45 . 12 5 2 7 44 7 Time Decay 2469 | 10 120 80 487 10 . 116 273 59 77 . 69 113 . 20 . 60 10 59 251 150 222 283 Lost Part 200 | . . . 40 . . 30 . . . . . . . . . . . . . 30 10 90 Lost Ally 50 | . . . . . . . . . . . . . . 10 . . . . 20 10 . 10 Purge Threat 349 | . 132 . . . . . . . . . . . . . . . . . . . 217 . Squads Dispatched 23 | . 3 . 2 . . . . . 1 . 3 1 . . . . . 1 5 2 2 3 Investigation 3 | . 1 . . . . . . . . . 1 . . . . . . . . . . 1 Extermination 10 | . . . . . . . . . 1 . 1 1 . . . . . 1 1 2 1 2 Reinforcement 8 | . 2 . 2 . . . . . . . 1 . . . . . . . 2 . 1 . Assault 1 | . . . . . . . . . . . . . . . . . . . 1 . . . Garrison 1 | . . . . . . . . . . . . . . . . . . . 1 . . . Intercept . | . . . . . . . . . . . . . . . . . . . . . . . Searches Triggered . | . . . . . . . . . . . . . . . . . . . . . . . Construction Impeded . | . . . . . . . . . . . . . . . . . . . . . . . Haulers Reinforced 2 | . . . . . . . . . . . 1 . . . . . . . 1 . . . Active Scanning Responses . | . . . . . . . . . . . . . . . . . . . . . . . Cargo Convoy Interrupts . | . . . . . . . . . . . . . . . . . . . . . . . Stealth | -11 -10 -10 -9 -9 -9 -8 -8 -7 -6 -6 -6 -5 -5 -5 -5 -4 -4 -3 -3 -2 -2 -2 --------- Run | Yrd Mat Min Mat Min Exi Min Mat Fac Fac Was Fac Fac Upp Upp War Pro Fac Res Tes Res Qua Frg Distress Signals 13 | . 2 . 6 . . . . . . . . . . . . . 1 . 2 2 . . Communications Jammed . | . . . . . . . . . . . . . . . . . . . . . . . Distress Signals . | . . . . . . . . . . . . . . . . . . . . . . . Times Spotted 212 | . 15 5 47 . . 8 12 5 2 . 4 2 . 2 16 7 1 4 9 19 8 46 Peak Tracking Total 16 | . 6 3 7 . 9 4 5 4 1 . 3 1 . 5 8 4 3 1 3 10 5 16 Tactical Retreats 24 | . 2 . 3 . . . 1 . . . 2 . . 1 . 2 . . 1 5 2 5 Traps | -11 -10 -10 -9 -9 -9 -8 -8 -7 -6 -6 -6 -5 -5 -5 -5 -4 -4 -3 -3 -2 -2 -2 ------- Run | Yrd Mat Min Mat Min Exi Min Mat Fac Fac Was Fac Fac Upp Upp War Pro Fac Res Tes Res Qua Frg Traps Triggered 16 | . . . . . . . . . 2 . 3 . . . . . . 1 . . 2 8 Indirectly . | . . . . . . . . . . . . . . . . . . . . . . . Trap Hack Attempts . | . . . . . . . . . . . . . . . . . . . . . . . Triggered . | . . . . . . . . . . . . . . . . . . . . . . . Disarmed . | . . . . . . . . . . . . . . . . . . . . . . . Reprogrammed . | . . . . . . . . . . . . . . . . . . . . . . . Reused . | . . . . . . . . . . . . . . . . . . . . . . . Traps Extracted . | . . . . . . . . . . . . . . . . . . . . . . . Installed . | . . . . . . . . . . . . . . . . . . . . . . . Triggered . | . . . . . . . . . . . . . . . . . . . . . . . Machines | -11 -10 -10 -9 -9 -9 -8 -8 -7 -6 -6 -6 -5 -5 -5 -5 -4 -4 -3 -3 -2 -2 -2 ---------- Run | Yrd Mat Min Mat Min Exi Min Mat Fac Fac Was Fac Fac Upp Upp War Pro Fac Res Tes Res Qua Frg Machines Disabled 29 | . . . 4 . 1 . 1 1 1 . 1 1 . 1 1 . . . 4 1 7 5 Max in Single Turn 1 | . . . 1 . 1 . 1 1 1 . 1 1 . 1 1 . . . 1 1 1 1 Garrison Access 3 | . . . . . . . . . 1 . . . . . . . . . . 1 . 1 Machines Repaired . | . . . . . . . . . . . . . . . . . . . . . . . Machines Dismantled 1 | . . . . . . . . . . . . . . . 1 . . . . . . . Machines Sabotaged . | . . . . . . . . . . . . . . . . . . . . . . . Overloaded Fab Kills . | . . . . . . . . . . . . . . . . . . . . . . . Hacking | -11 -10 -10 -9 -9 -9 -8 -8 -7 -6 -6 -6 -5 -5 -5 -5 -4 -4 -3 -3 -2 -2 -2 --------- Run | Yrd Mat Min Mat Min Exi Min Mat Fac Fac Was Fac Fac Upp Upp War Pro Fac Res Tes Res Qua Frg Machines Accessed 96 | . 4 1 7 . 2 1 3 5 13 . 6 6 . 2 2 . . 1 9 6 15 13 Terminals 60 | . 3 1 4 . . 1 3 2 8 . 3 5 . . . . . . 8 3 10 9 Fabricators 3 | . . . . . . . . 1 . . 1 . . . . . . . . . . 1 Repair Stations 11 | . . . 1 . . . . 1 2 . 1 1 . . . . . . 1 . 2 2 Recycling Units 2 | . 1 . . . . . . . . . . . . . . . . 1 . . . . Scanalyzers 10 | . . . 2 . . . . 1 1 . 1 . . . . . . . . 2 3 . Garrison Access 4 | . . . . . . . . . 2 . . . . . . . . . . 1 . 1 Total Hacks 218 | . 14 2 25 . 2 2 4 7 34 . 11 18 . 2 2 . . 2 18 11 33 31 Successful 114 | . 5 1 16 . 2 1 . 3 22 . 7 6 . 2 2 . . . 11 6 16 14 Failed 103 | . 9 1 9 . . 1 4 4 12 . 4 12 . . . . . 2 7 5 16 17 Catastrophic 22 | . 1 . 2 . . . . . 4 . 1 2 . . . . . . 2 2 7 1 Database Lockouts 1 | . . . . . . . . . . . . . . . . . . . . . 1 . Manual 91 | . 13 2 11 . 1 2 4 4 13 . 4 11 . . . . . . 7 3 9 7 Terminals 144 | . 11 2 14 . . 2 4 4 17 . 4 16 . . . . . . 16 7 21 26 Fabricators 4 | . . . . . . . . 1 . . 2 . . . . . . . . . . 1 Repair Stations 28 | . . . 2 . . . . 1 12 . 2 2 . . . . . . 2 . 4 3 Recycling Units 5 | . 3 . . . . . . . . . . . . . . . . 2 . . . . Scanalyzers 25 | . . . 9 . . . . 1 1 . 3 . . . . . . . . 3 8 . Garrison Access 6 | . . . . . . . . . 4 . . . . . . . . . . 1 . 1 Terminal Hacks 43 | . 2 1 5 . 2 . . . 6 . . 1 . 2 2 . . . 5 1 6 10 Record 5 | . . . . . 1 . . . . . . . . . . . . . 1 . 3 . Part Schematic 2 | . . . . . . . . . 1 . . . . . . . . . 1 . . . Robot Analysis 4 | . . 1 2 . . . . . . . . . . . . . . . . . . 1 Prototype ID Bank 4 | . . . 1 . . . . . 1 . . . . . . . . . . . . 2 Open Door 5 | . . . . . . . . . . . . . . 2 2 . . . 1 . . . Open DSF 1 | . . . . . . . . . . . . . . . . . . . . 1 . . Level Access Points 2 | . . . . . . . . . 1 . . . . . . . . . 1 . . . Terminal Index 2 | . . . . . . . . . 2 . . . . . . . . . . . . . Alert Level 3 | . . . . . . . . . 1 . . 1 . . . . . . . . . 1 Unreport Threat 4 | . 1 . . . . . . . . . . . . . . . . . . . 3 . Locate Traps 1 | . . . 1 . . . . . . . . . . . . . . . . . . . Hauler Manifests 1 | . . . . . . . . . . . . . . . . . . . . . . 1 Registered Components 1 | . . . . . . . . . . . . . . . . . . . . . . 1 Zone Layout 5 | . 1 . 1 . . . . . . . . . . . . . . . . . . 3 Proto ID Catalog 2 | . . . . . 1 . . . . . . . . . . . . . . . . 1 Protovariant Controls 1 | . . . . . . . . . . . . . . . . . . . 1 . . . Fabricator Hacks 3 | . . . . . . . . 1 . . 2 . . . . . . . . . . . Network Status 1 | . . . . . . . . 1 . . . . . . . . . . . . . . Load Schematic 1 | . . . . . . . . . . . 1 . . . . . . . . . . . Build 1 | . . . . . . . . . . . 1 . . . . . . . . . . . Repair Station Hacks 20 | . . . 1 . . . . . 12 . 1 2 . . . . . . 2 . 2 . Scan Component 11 | . . . 1 . . . . . 6 . 1 1 . . . . . . 1 . 1 . Repair 9 | . . . . . . . . . 6 . . 1 . . . . . . 1 . 1 . Recycling Unit Hacks . | . . . . . . . . . . . . . . . . . . . . . . . Scanalyzer 19 | . . . 8 . . . . 1 . . 3 . . . . . . . . 2 5 . Insert Component 4 | . . . 1 . . . . . . . . . . . . . . . . . 3 . Analyze 1 | . . . 1 . . . . . . . . . . . . . . . . . . . Retrieve Study 14 | . . . 6 . . . . 1 . . 3 . . . . . . . . 2 2 . Garrison Access Hacks 3 | . . . . . . . . . 1 . . . . . . . . . . 1 . 1 Seal Access 3 | . . . . . . . . . 1 . . . . . . . . . . 1 . 1 Unauthorized Hacks 26 | . 3 . 2 . . 1 . 1 3 . 1 3 . . . . . . 4 2 3 3 Terminals 24 | . 2 . 2 . . 1 . 1 3 . 1 3 . . . . . . 4 2 3 2 Assimilate 7 | . . . . . . . . . . . . 1 . . . . . . 3 1 1 1 Botnet 17 | . 2 . 2 . . 1 . 1 3 . 1 2 . . . . . . 1 1 2 1 Fabricators . | . . . . . . . . . . . . . . . . . . . . . . . Repair Stations 1 | . . . . . . . . . . . . . . . . . . . . . . 1 Patch 1 | . . . . . . . . . . . . . . . . . . . . . . 1 Recycling Units 1 | . 1 . . . . . . . . . . . . . . . . . . . . . Tunnel 1 | . 1 . . . . . . . . . . . . . . . . . . . . . Scanalyzers . | . . . . . . . . . . . . . . . . . . . . . . . Garrison Access . | . . . . . . . . . . . . . . . . . . . . . . . Data Cores Recovered . | . . . . . . . . . . . . . . . . . . . . . . . Used . | . . . . . . . . . . . . . . . . . . . . . . . Hacking Detections 71 | . 4 1 6 . . 1 3 4 10 . 5 6 . . . . . 1 6 4 11 9 Full Trace Events 1 | . . . . . . . . . . . 1 . . . . . . . . . . . Feedback Events . | . . . . . . . . . . . . . . . . . . . . . . . Feedback Blocked . | . . . . . . . . . . . . . . . . . . . . . . . Robot Schematics Acquired 5 | . . . . . . . . . . . . . . . . . . . 2 . 3 . Robots Built . | . . . . . . . . . . . . . . . . . . . . . . . Authchips . | . . . . . . . . . . . . . . . . . . . . . . . Time . | . . . . . . . . . . . . . . . . . . . . . . . Total Robot Build Rating . | . . . . . . . . . . . . . . . . . . . . . . . Part Schematics Acquired 9 | . . . 1 . . . . . 1 . . . . . . . . . 3 . 4 . Parts Built 1 | . . . . . . . . . . . 1 . . . . . . . . . . . Authchips . | . . . . . . . . . . . . . . . . . . . . . . . Time 134 | . . . . . . . . . . . 134 . . . . . . . . . . . Total Part Build Rating 4 | . . . . . . . . . . . 4 . . . . . . . . . . . Part Studies Acquired 14 | . . . 6 . . . . 1 . . 3 . . . . . . . . 2 2 . Parts Repaired 9 | . . . . . . . . . 6 . . 1 . . . . . . 1 . 1 . Time 451 | . . . . . . . . . 311 . . 35 . . . . . . 70 . 35 . Parts Recycled . | . . . . . . . . . . . . . . . . . . . . . . . Recycled Matter . | . . . . . . . . . . . . . . . . . . . . . . . Retrieved Matter . | . . . . . . . . . . . . . . . . . . . . . . . Retrieved Components . | . . . . . . . . . . . . . . . . . . . . . . . Parts Scanalyzed 1 | . . . 1 . . . . . . . . . . . . . . . . . . . Part Schematics Acquired 1 | . . . 1 . . . . . . . . . . . . . . . . . . . Parts Damaged . | . . . . . . . . . . . . . . . . . . . . . . . Bothacking | -11 -10 -10 -9 -9 -9 -8 -8 -7 -6 -6 -6 -5 -5 -5 -5 -4 -4 -3 -3 -2 -2 -2 ------------ Run | Yrd Mat Min Mat Min Exi Min Mat Fac Fac Was Fac Fac Upp Upp War Pro Fac Res Tes Res Qua Frg Used RIF Installer . | . . . . . . . . . . . . . . . . . . . . . . . Robots Hacked . | . . . . . . . . . . . . . . . . . . . . . . . Non-combat . | . . . . . . . . . . . . . . . . . . . . . . . Combat . | . . . . . . . . . . . . . . . . . . . . . . . Robot Hacks Applied . | . . . . . . . . . . . . . . . . . . . . . . . Relay Couplers Released . | . . . . . . . . . . . . . . . . . . . . . . . Fabnet Peak Effective % . | . . . . . . . . . . . . . . . . . . . . . . . Robots Rewired . | . . . . . . . . . . . . . . . . . . . . . . . Allies Hacked . | . . . . . . . . . . . . . . . . . . . . . . . Hacks Repelled . | . . . . . . . . . . . . . . . . . . . . . . . Allies | -11 -10 -10 -9 -9 -9 -8 -8 -7 -6 -6 -6 -5 -5 -5 -5 -4 -4 -3 -3 -2 -2 -2 -------- Run | Yrd Mat Min Mat Min Exi Min Mat Fac Fac Was Fac Fac Upp Upp War Pro Fac Res Tes Res Qua Frg Total Allies 25 | . . . . . . . . . . 20 . 1 . . . . . . 2 1 . 1 Largest Group 20 | . . . . . . . . . . 20 . 1 1 1 . . . . 2 1 . 1 Highest-Rated Group 762 | . . . . . . . . . . 762 . 26 26 26 . . . . 71 45 . 22 Highest-Rated Ally 50 | . . . . . . . . . . 50 . 26 26 26 . . . . 45 45 . 22 Total Orders 2 | . . . . . . . . . . . . . . . . . . . 1 . . 1 STAY 2 | . . . . . . . . . . . . . . . . . . . 1 . . 1 Ally Attacks . | . . . . . . . . . . . . . . . . . . . . . . . Total Damage . | . . . . . . . . . . . . . . . . . . . . . . . Kills . | . . . . . . . . . . . . . . . . . . . . . . . Allies Corrupted 1 | . . . . . . . . . . . . . . . . . . . 1 . . . Allies Melted . | . . . . . . . . . . . . . . . . . . . . . . . Intel | -11 -10 -10 -9 -9 -9 -8 -8 -7 -6 -6 -6 -5 -5 -5 -5 -4 -4 -3 -3 -2 -2 -2 ------- Run | Yrd Mat Min Mat Min Exi Min Mat Fac Fac Was Fac Fac Upp Upp War Pro Fac Res Tes Res Qua Frg Active Infowar (turns) 6220 | 13 279 171 . . . . 699 199 730 18 491 372 94 80 503 328 27 257 544 343 464 608 Optics 4859 | . . . . . . . . . 730 18 491 372 94 80 503 328 27 257 544 343 464 608 Sensors 4547 | . . . . . . . . 182 730 18 491 372 94 80 359 328 27 257 499 277 411 422 IFF 1 | . . . . . . . . . . . . . . . . . . 1 . . . . Terrain 2345 | . . . . . . . . . . . . 369 94 77 443 246 19 257 292 245 246 57 Seismic 463 | 13 279 171 . . . . . . . . . . . . . . . . . . . . Machine Analysis 717 | . . . . . . . 699 18 . . . . . . . . . . . . . . Jamming 476 | . . . . . . . . . . . . . . . . . . . . . 412 64 ECM 1 | . . . . . . . . . . . . 1 . . . . . . . . . . Robot Analysis Total 4 | . . 1 2 . . . . . . . . . . . . . . . . . . 1 Derelict Logs Recovered 3 | . . . . . . . . . . . . . 1 . . 2 . . . . . . Drone Launches . | . . . . . . . . . . . . . . . . . . . . . . . Drone Recoveries . | . . . . . . . . . . . . . . . . . . . . . . . Exploration | -11 -10 -10 -9 -9 -9 -8 -8 -7 -6 -6 -6 -5 -5 -5 -5 -4 -4 -3 -3 -2 -2 -2 ------------- Run | Yrd Mat Min Mat Min Exi Min Mat Fac Fac Was Fac Fac Upp Upp War Pro Fac Res Tes Res Qua Frg Turns Passed 8276 | 61 279 199 1381 23 255 280 720 199 730 18 491 372 94 80 503 328 27 257 544 343 464 628 Spaces Moved 14003 | 41 207 155 882 24 254 224 424 647 1098 70 912 923 330 240 1071 586 120 581 1147 1056 1174 1837 Core 39 | . . . . . . . . . . . . . . . . . . . . . . 39 Treads 102 | . . . 101 . . . 1 . . . . . . . . . . . . . . . Legs . | . . . . . . . . . . . . . . . . . . . . . . . Wheels 2116 | 41 207 155 781 24 254 224 423 7 . . . . . . . . . . . . . . Hover . | . . . . . . . . . . . . . . . . . . . . . . . Flight 11746 | . . . . . . . . 640 1098 70 912 923 330 240 1071 586 120 581 1147 1056 1174 1798 Fastest Speed 5 | 100 100 100 90 100 100 100 105 11 11 23 11 11 23 23 5 5 20 17 5 5 6 5 Average Speed 34 | 100 100 100 112 100 100 103 128 24 22 23 22 22 23 23 22 22 20 20 16 14 19 18 Slowest Speed 320 | 100 100 100 320 100 100 135 320 155 23 23 23 23 23 23 23 23 20 87 17 82 90 200 Overloaded Moves 774 | . . . . . . . . 21 1 . 17 8 . . 12 32 . . 47 39 137 460 Propulsion Burnouts 1 | . . . . . . . . . . . . . . . . . . . . . . 1 Robots Hopped 43 | . . . . . . . . . 2 1 3 6 . . 3 . . . 5 8 3 12 Potential Cave-ins 4 | . . . . . . . . . . . . . . . . 4 . . . . . . Cave-ins Triggered . | . . . . . . . . . . . . . . . . . . . . . . . Teleports 1 | . . . . . . . . . . . . . . . . . . . . . . 1 Exploration Rate (%) 40 | 4 42 33 61 7 61 31 27 12 29 73 17 25 54 37 83 72 4 13 58 31 88 67 Regions Visited 22 Branch Regions 11 Pre-discovered Areas 2 | . 1 . . . 1 . . . . . . . . . . . . . . . . . Known Exits Taken 12 | . . . . . . . . 1 . . 1 1 1 1 1 1 1 1 1 1 1 . Unknown Exits Taken 8 | 1 1 1 1 1 1 1 1 . . . . . . . . . . . . . . . Scrap Searched 6 | . . 1 . . . 1 . . . . . . . 3 . 1 . . . . . . Spaces Dug 235 | . . . . . . . . 5 8 . 5 11 . 25 28 78 . 3 13 6 21 32 Terrain Destroyed 317 | . . . 22 . . 29 7 5 8 . 5 11 . 25 28 102 . 3 13 6 21 32 Melee 101 | . . . . . . . . 5 8 . 5 11 . . . . . 3 13 6 18 32 Projectile 18 | . . . 7 . . 1 7 . . . . . . . . . . . . . 3 . AOE 198 | . . . 15 . . 28 . . . . . . . 25 28 102 . . . . . . Terrain Rammed . | . . . . . . . . . . . . . . . . . . . . . . . Walls Destroyed . | . . . . . . . . . . . . . . . . . . . . . . . Machines Disabled . | . . . . . . . . . . . . . . . . . . . . . . . Actions | -11 -10 -10 -9 -9 -9 -8 -8 -7 -6 -6 -6 -5 -5 -5 -5 -4 -4 -3 -3 -2 -2 -2 --------- Run | Yrd Mat Min Mat Min Exi Min Mat Fac Fac Was Fac Fac Upp Upp War Pro Fac Res Tes Res Qua Frg Total 16653 | 52 239 184 1101 23 254 249 549 680 1552 69 1181 1059 347 259 1311 769 122 665 1425 1192 1362 2009 Wait 1798 | . 6 13 87 . . 2 34 . 415 . 242 121 18 12 222 164 . 34 200 74 95 59 Move 13901 | 40 206 154 881 23 253 223 423 646 1094 67 905 911 329 239 1065 585 119 580 1136 1040 1167 1815 Hop 38 | . . . . . . . . . 2 1 3 5 . . 2 . . . 5 7 3 10 Pick Up 85 | 2 3 2 11 . . 4 15 4 6 . 3 3 . . 1 . 1 4 4 7 10 5 Fast Attach 53 | 1 . 1 6 . . 1 8 1 3 1 . 1 . 2 . . . 4 2 3 7 12 Attach 43 | . . . 5 . . 2 . 8 3 . . 3 . . 1 . 2 2 . 5 7 5 Detach 32 | . . . 2 . . . 6 3 2 . . 1 . . . . . . . 4 7 7 Swap 130 | 2 1 3 15 . . 2 11 2 2 . 1 1 . 2 9 12 . 4 27 12 13 11 Drop 103 | 3 3 3 10 . . 3 18 9 2 . 3 1 . 1 1 . . 2 7 8 17 12 Fire 226 | 4 20 8 83 . 1 12 33 . 5 . . . . 2 2 8 . . 18 21 9 . Melee 193 | . . . . . . . 1 7 10 . 9 12 . 1 . . . 35 26 11 26 55 Ram 1 | . . . 1 . . . . . . . . . . . . . . . . . . . Kick . | . . . . . . . . . . . . . . . . . . . . . . . Crush . | . . . . . . . . . . . . . . . . . . . . . . . Escape Stasis 42 | . . . . . . . . . 8 . 15 . . . . . . . . . 1 18 Rewire . | . . . . . . . . . . . . . . . . . . . . . . . Trap . | . . . . . . . . . . . . . . . . . . . . . . . Miscellaneous 8 | . . . . . . . . . . . . . . . 8 . . . . . . . Route ------- -11/Scrapyard -10/Materials (discovered 2 exits: *Mat / *Min) -10/Mines -9/Materials (discovered 2 exits: *Mat / [*Min]) -9/Mines -9/Exiles -8/Mines (discovered 2 exits: *Mat x2) -8/Materials -7/Factory -6/Factory (discovered 5 exits: *Fac x4 / [*Low]) -6/Waste -6/Factory -5/Factory -5/Upper Caves -5/Upper Caves -5/Warlord -4/Proximity Caves -4/Factory -3/Research -3/Testing -2/Research (discovered 2 exits: *Acc / *Qua) -2/Quarantine (discovered 3 exits: *Acc / *Sec / *Frg) -2/Protoforge (discovered 1 exit: *Acc) History --------- Turn | Location | Event 6 | -11/Scrapyard | Discovered new exit (range 3) 62 | -11/Scrapyard | Entered Materials 284 | -10/Materials | Discovered new exit (range 5) 305 | -10/Materials | Build established: Mutant 318 | -10/Materials | Discovered new exit (range 9) 341 | -10/Materials | Entered Mines 480 | -10/Mines | Discovered new exit (range 9) 540 | -10/Mines | Entered Materials 540 | -9/Materials | Evolved 2 slots: Propulsion x1, Utility x1 991 | -9/Materials | Build established: Scavenger-Mutant 1842 | -9/Materials | Discovered new exit (range 14) 1906 | -9/Materials | Discovered new exit (range 14) 1921 | -9/Materials | Entered Mines 1940 | -9/Mines | Deemed a non-threat by the Exiles lab entrance 1940 | -9/Mines | Discovered new exit (range 5) 1944 | -9/Mines | Entered Exiles 1969 | -9/Exiles | Met 8R-AWN 1983 | -9/Exiles | Met EX-HEX 2025 | -9/Exiles | Met EX-DEC 2029 | -9/Exiles | Learned location of Zion (-6) 2045 | -9/Exiles | Met EX-BIN 2059 | -9/Exiles | Aligned with FarCom system 2060 | -9/Exiles | Given EX-Vault access code 2085 | -9/Exiles | Opened EX-Vault 2121 | -9/Exiles | Warned to stay clear of 0b10 Research branches 2178 | -9/Exiles | Attacked by the Exiles 2191 | -9/Exiles | Discovered new exit (range 10) 2199 | -9/Exiles | Entered Mines 2411 | -8/Mines | Found DCF Scrap (15 items) 2450 | -8/Mines | Discovered new exit (range 10) 2472 | -8/Mines | Discovered new exit (range 8) 2479 | -8/Mines | Entered Materials 2479 | -8/Materials | Evolved 2 slots: Propulsion x1, Utility x1 2894 | -8/Materials | Discovered new exit (range 5) 3140 | -8/Materials | Build established: Mutant 3199 | -8/Materials | Entered Factory 3199 | -7/Factory | Evolved 2 slots: Propulsion x1, Utility x1 3241 | -7/Factory | Discovered new exit (range 7) 3242 | -7/Factory | Identified exit to Factory 3398 | -7/Factory | Entered another Factory area 3398 | -6/Factory | Evolved 2 slots: Utility x2 3421 | -6/Factory | Repaired Imp. Grenade Launcher 3462 | -6/Factory | Identified exit to Factory 3483 | -6/Factory | Discovered new exit (range 16) 3704 | -6/Factory | Build established: Hacker-Scout 3811 | -6/Factory | Repaired Hrd. Light Armor Plating 3872 | -6/Factory | Repaired Enh. Autogun 3933 | -6/Factory | Repaired Enh. Autogun 4004 | -6/Factory | Repaired Cld. VTOL Module 4075 | -6/Factory | Repaired Cld. VTOL Module 4128 | -6/Factory | Sucked down chute 4128 | -6/Factory | Entered Waste 4129 | -6/Waste | Joined by Warlord forces that had cleared the area 4138 | -6/Waste | Discovered new exit (range 19) 4146 | -6/Waste | Identified exit to Factory 4146 | -6/Waste | Entered Factory 4343 | -6/Factory | Fabricated Cld. VTOL Module? 4590 | -6/Factory | Spotted B-75 Beast 4635 | -6/Factory | Discovered exit to Factory (range 8) 4637 | -6/Factory | Entered another Factory area 4637 | -5/Factory | Evolved 2 slots: Propulsion x1, Utility x1 4803 | -5/Factory | Repaired Cld. VTOL Module 4992 | -5/Factory | Discovered new exit (range 10) 4994 | -5/Factory | Identified exit to Upper Caves 5009 | -5/Factory | Entered Upper Caves 5009 | -5/Upper Caves | Accompanied by 1 ally 5062 | -5/Upper Caves | Learned Factory terminal intel 5091 | -5/Upper Caves | Discovered new exit (range 7) 5092 | -5/Upper Caves | Identified exit to Upper Caves 5103 | -5/Upper Caves | Entered another Upper Caves area 5103 | -5/Upper Caves | Accompanied by 1 ally 5170 | -5/Upper Caves | Discovered new exit (range 17) 5177 | -5/Upper Caves | Found Alien Artifact 5177 | -5/Upper Caves | Identified Dimensional Node Initializer 5177 | -5/Upper Caves | Initialized slip node 5183 | -5/Upper Caves | Identified exit to Warlord 5183 | -5/Upper Caves | Entered Warlord 5221 | -5/Warlord | Visited the Vortex Lab 5222 | -5/Warlord | Found Prototype Energy Gun 5222 | -5/Warlord | Identified Vortex Rifle 5231 | -5/Warlord | Warlord's base attacked by MAIN.C 5385 | -5/Warlord | Opened side exit 5418 | -5/Warlord | Discovered new exit (range 15) 5581 | -5/Warlord | Warlord forces counterattacked 5617 | -5/Warlord | Spotted Executioner 5660 | -5/Warlord | Lost 10 allies 5684 | -5/Warlord | Spotted Executioner 5685 | -5/Warlord | Spotted Striker 5685 | -5/Warlord | Identified exit to Proximity Caves 5686 | -5/Warlord | Entered Proximity Caves 5999 | -4/Proximity Caves | Learned 8 Research zone layouts 6006 | -4/Proximity Caves | Learned Research stockpile data 6012 | -4/Proximity Caves | Discovered new exit (range 8) 6013 | -4/Proximity Caves | Identified exit to Factory 6014 | -4/Proximity Caves | Entered Factory 6014 | -4/Factory | Evolved 2 slots: Power x1, Propulsion x1 6015 | -4/Factory | Loaded intel: 26 terminal locations 6022 | -4/Factory | Discovered new exit (range 9) 6023 | -4/Factory | Identified exit to Research 6041 | -4/Factory | Entered Research 6041 | -3/Research | Evolved 2 slots: Utility x2 6049 | -3/Research | Discovered new exit (range 13) 6058 | -3/Research | Identified exit to Testing 6298 | -3/Research | Entered Testing 6321 | -3/Testing | Found Prototype Energy Gun 6321 | -3/Testing | Identified Hyp. EM Gauss Rifle 6378 | -3/Testing | Spotted Striker 6389 | -3/Testing | Found Prototype Device 6389 | -3/Testing | Identified AEGIS Remote Shield 6413 | -3/Testing | Found Prototype Protection 6413 | -3/Testing | Identified Med. Regenerative Plating 6416 | -3/Testing | Found Lgt. Regenerative Plating 6539 | -3/Testing | Identified exit to Research 6539 | -3/Testing | Protovariant out of control (PG-HADNG3X6G1) 6539 | -3/Testing | Unleashed a protovariant (PG-HADNG3X6G1) 6622 | -3/Testing | Found Prototype Processor 6622 | -3/Testing | Identified Exp. Targeting Computer 6709 | -3/Testing | Repaired Cld. VTOL Module 6721 | -3/Testing | Found Prototype Device 6721 | -3/Testing | Identified 2N-1CE's Frost Array 6823 | -3/Testing | Garrison activated, responded to threat 6842 | -3/Testing | Entered Research 6842 | -2/Research | Evolved 2 slots: Propulsion x1, Utility x1 6872 | -2/Research | Identified exit to DSF 6991 | -2/Research | Found Prototype Processor 7010 | -2/Research | Identified Exp. Signal Interpreter 7136 | -2/Research | Discovered new exit (range 11) 7138 | -2/Research | Identified exit to Quarantine 7146 | -2/Research | Discovered new exit (range 5) 7147 | -2/Research | Identified exit to Access 7185 | -2/Research | Entered Quarantine 7285 | -2/Quarantine | Watched by a mysterious "MATRIX" hacker. 7286 | -2/Quarantine | Central database locked down 7325 | -2/Quarantine | Found Alien Artifact 7341 | -2/Quarantine | Cryocooling Duct disabled 7344 | -2/Quarantine | Cryocooling Duct disabled 7356 | -2/Quarantine | Ambient heat levels rising (+20) 7356 | -2/Quarantine | Non-combat units ordered to evacuate 7359 | -2/Quarantine | Ambient heat levels rising (+20) 7359 | -2/Quarantine | Combat units ordered to evacuate 7379 | -2/Quarantine | Found Alien Artifact 7388 | -2/Quarantine | Discovered exit to Access (range 13) 7396 | -2/Quarantine | Found Alien Artifact 7409 | -2/Quarantine | Identified Core Reset Matrix 7409 | -2/Quarantine | Identified Subatomic Replicator 7409 | -2/Quarantine | Identified Transdimensional Reconstructor 7459 | -2/Quarantine | Quarantine Guard activated 7460 | -2/Quarantine | Spotted Quarantine Guard 7462 | -2/Quarantine | Spotted Quarantine Guard 7462 | -2/Quarantine | Spotted Quarantine Guard 7462 | -2/Quarantine | Spotted Quarantine Guard 7462 | -2/Quarantine | Spotted Quarantine Guard 7462 | -2/Quarantine | Spotted Quarantine Guard 7462 | -2/Quarantine | Spotted Quarantine Guard 7462 | -2/Quarantine | Spotted Quarantine Guard 7488 | -2/Quarantine | Build established: Hacker-Ninja 7488 | -2/Quarantine | Found Alien Artifact 7488 | -2/Quarantine | Identified Phase Redirector 7510 | -2/Quarantine | Found Alien Slashing Weapon 7510 | -2/Quarantine | Identified Sigix Broadsword 7517 | -2/Quarantine | Used Subatomic Replicator to replicate Sigix Broadsword 7522 | -2/Quarantine | Spotted Quarantine Guard 7604 | -2/Quarantine | Spotted Fortress 7608 | -2/Quarantine | Repaired Cld. VTOL Module? 7635 | -2/Quarantine | Discovered new exit (range 5) 7635 | -2/Quarantine | Discovered new exit (range 6) 7638 | -2/Quarantine | Identified exit to Protoforge 7641 | -2/Quarantine | Identified exit to Section 7 7649 | -2/Quarantine | Entered Protoforge 7651 | -2/Protoforge | Spotted Hotshot 7651 | -2/Protoforge | Spotted Hotshot 7651 | -2/Protoforge | Spotted Hotshot 7651 | -2/Protoforge | Spotted Hotshot 7651 | -2/Protoforge | Spotted Hotshot 7773 | -2/Protoforge | Spotted Hotshot 7836 | -2/Protoforge | Discovered exit to Access (range 16) 7911 | -2/Protoforge | Superfortress began startup sequence 7940 | -2/Protoforge | Found Prototype Device 7940 | -2/Protoforge | Identified Cep. Recoil Nullifier 7974 | -2/Protoforge | Build established: Hacker-Scout 7980 | -2/Protoforge | Spotted Hotshot 7980 | -2/Protoforge | Spotted Hotshot 7980 | -2/Protoforge | Spotted Hotshot 7980 | -2/Protoforge | Spotted Hotshot 8043 | -2/Protoforge | Spotted AP7-3 8067 | -2/Protoforge | Spotted AP7-3 8079 | -2/Protoforge | Spotted Decapitator 8079 | -2/Protoforge | Spotted Decapitator 8099 | -2/Protoforge | Found Prototype Device 8099 | -2/Protoforge | Identified Exp. Trap Extractor 8103 | -2/Protoforge | Found Prototype Device 8103 | -2/Protoforge | Identified Cep. Weapon Articulator 8118 | -2/Protoforge | Found Prototype Launcher 8125 | -2/Protoforge | Spotted Immortal 8125 | -2/Protoforge | Spotted Immortal 8125 | -2/Protoforge | Spotted Immortal 8126 | -2/Protoforge | Spotted V540-z 8126 | -2/Protoforge | Spotted V617-q 8131 | -2/Protoforge | System corruption reached 10% 8132 | -2/Protoforge | Spotted Decapitator 8132 | -2/Protoforge | Spotted Decapitator 8133 | -2/Protoforge | Spotted V637-o 8150 | -2/Protoforge | Spotted Decapitator 8150 | -2/Protoforge | Spotted Decapitator 8150 | -2/Protoforge | Spotted Decapitator 8166 | -2/Protoforge | Spotted V207-j 8166 | -2/Protoforge | Spotted V690-k 8166 | -2/Protoforge | Spotted V876-f 8174 | -2/Protoforge | Found Prototype Protection 8175 | -2/Protoforge | Found Prototype Processor 8179 | -2/Protoforge | Identified Cep. Projectile Intercept Suite 8179 | -2/Protoforge | Identified Cep. Core Shell 8179 | -2/Protoforge | Identified Cep. Concussive Dispersal Blaster 8181 | -2/Protoforge | Spotted Immortal 8181 | -2/Protoforge | Spotted Immortal 8181 | -2/Protoforge | Spotted Decapitator 8181 | -2/Protoforge | Spotted Decapitator 8181 | -2/Protoforge | Spotted Decapitator 8181 | -2/Protoforge | Spotted Decapitator 8183 | -2/Protoforge | Spotted Decapitator 8183 | -2/Protoforge | Spotted Decapitator 8183 | -2/Protoforge | Spotted Decapitator 8188 | -2/Protoforge | Destroyed Decapitator 8191 | -2/Protoforge | Destroyed Decapitator 8197 | -2/Protoforge | Destroyed Decapitator 8203 | -2/Protoforge | Destroyed Decapitator 8208 | -2/Protoforge | Spotted Decapitator 8213 | -2/Protoforge | Found Femtoactuators 8215 | -2/Protoforge | Warped through subspace 8260 | -2/Protoforge | Core integrity fell below 50% 8270 | -2/Protoforge | Core integrity fell below 20% 8277 | -2/Protoforge | Destroyed by Decapitator with Experimental Terror Saw Last Messages --------------- 08250_ Field strength at 88. 08250_ Electron Diverter severed. 08251_ System corrupted: 2N-1CE's Frost Array fused. 08251_ Adv. System Shield severed. 08251_ Field strength at 62. 08252_ Field strength at 56. 08253_ Field strength at 26. 08253_ Imp. Hacking Suite severed. 08254_ Cld. VTOL Module severed. 08254_ Field strength at 2. 08254_ Stasis field depleted. 08257_ Adv. Visual Processing Unit severed. 08258_ Imp. Melee Analysis Suite severed. 08258_ Exp. Salvage Targeting Computer severed. 08258_ Med. Storage Unit destroyed. 08259_ 2N-1CE's Frost Array severed. 08259_ Adv. Terrain Scan Processor destroyed. 08260_ Exp. Signal Interpreter severed. 08266_ System corrupted: Matter fused (-6). Map ----- +----------------------------------------------------+ | ?????????????????????????????????????????????????? | | ?????????????????????????????????????????????????? | | ?????????????????????????????????????????????????? | | ?????????????????????????????????????????????????? | | ?????????????????????????????????????????????????? | | ?????????????????????????????????????????????????? | | ?????????????????????????????????????????????????? | | ?????????????????????????????????????????????????? | | ?????????????????????????????????????????????????? | | ?????????????????????????????????????????????????? | | ???????????????????????####??????????????????????? | | ??????????????????????? #?????????????????????? | | ??????????????????????? Y?????????????????????? | | ??????????????????????? Y?????????????????????? | | ???????????????????????# #?????????????????????? | | ???????????????????????# #?????????????????????? | | ???????????????????????# #?????????????????????? | | ???????????????????????# #?????????????????????? | | ???????????????????????# #?????????????????????? | | ???????????????????????# ##????????????????????? | | ???????????????????????# ????????????????????? | | ???????????????????????# ?????????????????????? | | ???????????????????????# #?????????????????????? | | ???????????????????????# #?????????????????????? | | ???????????????????????# #?????????????????????? | | ???????????????????????# @ #?????????????????????? | | ???????????????????????#c #?????????????????????? | | ???????????????????????# #?????????????????????? | | ???????????????????????# #?????????????????????? | | ???????????????????????#c #?????????????????????? | | ??????######???????????#c #?????????????????????? | | ????"""""""""??????????#c #?????????????????????? | | ????" ! ! ! ?????????# #?????????????????????? | | ?#??? !! ! ! ?????????# #?????????????????????? | | ""?###""""""""#????????# #?????????????????????? | | " !# "#???????# #?????????????????????? | | " !# ""#???????# #?????????????????????? | | " !" """"#???????# #?????????????????????? | | "!!" """"#???????# #?????????????????????? | | " " ""#???????# #?????????????????????? | | "!!" "#???????# #################?????? | | " " "#???????# ?? | | "! " #????????# ?? | | ##"" "?????????# ########### #?????? | | # ""#???????# #?????????????????????? | | # #???????# #?????????????????????? | | ###++### ####+##??????# #?????????????????????? | | #" # #?" "#??????# #?????????????????????? | | #" # #"" "#??????# #?????????????????????? | | #" " " ###??????# #?????????????????????? | +----------------------------------------------------+ Best States ------------- Heat Dissipation 149 Energy Generation 45 Energy Capacity 280 Matter Stores 300 Matter Capacity 300 Sight Range 20 Robot Scan Range 16 Terrain Scan Range 20 Terrain Scan Density 210 Jamming Range 16 Armor Coverage 150 Evasion (%) 79 Targeting Accuracy 30 Melee Accuracy 6 Recoil Reduction 3 Salvage Targeting 5 Offensive Hacking 22 Defensive Hacking 14 Authchip Count 1 Trap Extractor Capacity 12 Item Schematics ----------------- Flight Unit | -9/Materials | Scanalyzed Cld. VTOL Module | -6/Factory | Hacked Lgt. Regenerative Plating | -3/Testing | Hacked Centrium Medium Armor Plating | -3/Testing | Archive Prc. Energy Filter | -3/Testing | Archive Hvy. Tesla Rifle | -2/Quarantine | Archive Adv. Plasma Rifle | -2/Quarantine | Archive Coolant Network | -2/Quarantine | Archive Com. Mass Driver | -2/Quarantine | Archive Robot Schematics ------------------ B-60 Warrior | -3/Testing | Archive R-10 Processor | -3/Testing | Archive A-15 Conveyor | -2/Quarantine | Archive K-01 Serf | -2/Quarantine | Archive Y-72 Warden | -2/Quarantine | Archive Fabricated ------------ Cld. VTOL Module | x1 | -6/Factory Repaired ---------- Imp. Grenade Launcher | 68% | -6/Factory Hrd. Light Armor Plating | 75% | -6/Factory Enh. Autogun | 81% | -6/Factory Enh. Autogun | 90% | -6/Factory Cld. VTOL Module | 95% | -6/Factory Cld. VTOL Module | 96% | -6/Factory Cld. VTOL Module | 65% | -5/Factory Cld. VTOL Module | 58% | -3/Testing Cld. VTOL Module | 58% | -2/Quarantine Studied --------- Com. Wheel | -9/Materials | Hacked Imp. Light Cannon | -9/Materials | Hacked Arm. Wheel | -9/Materials | Hacked Flight Unit | -9/Materials | Hacked Autogun | -9/Materials | Hacked Lgt. Assault Rifle | -9/Materials | Hacked Mic. Nuclear Core | -7/Factory | Hacked Nuclear Pulse Thruster | -6/Factory | Hacked Imp. Grenade Launcher | -6/Factory | Hacked Katana | -6/Factory | Hacked Lgt. Antimatter Reactor | -2/Research | Hacked Lgt. Particle Reactor | -2/Research | Hacked Field Propulsion Array | -2/Quarantine | Hacked Dispersion Rifle | -2/Quarantine | Hacked Alien Tech Used ----------------- Dimensional Node Initializer Phase Redirector Sigix Broadsword Subatomic Replicator Transdimensional Reconstructor Achievements -------------- Rampage Super-what Now? Challenges ------------ None Game ------ Seed CompactLightHoverbase Manual? 0 Play Time 03:30:31 Cumulative 204.7 hours Start 2026.04.21 @ 21:03:29 End 2026.04.22 @ 15:17:05 Sessions 3 Manual Loads 0 Difficulty Rogue Special Mode None Game No. 121 Rogue 121 Adventurer 0 Explorer 0 Win Type - Total 7 Types 3/0/2/1/0/0/0/1/0/0 Lore% 65 Gallery% 59 Achievement% 53 Wizard Run 0 Options --------- Layout 2 ASCII 0 Keyboard 1 Movement Arrows Keybinds 0 Fullscreen 2 Font 24/Terminus Map View 50x44 Zoom Use 0% Tactical HUD 1 Map Filters NONE Filters NONE Steam 1 RUN: e419019c-20aa-4b71-8661-ead73207b924